{"text_format":"3","workbook":"xlsx","n_sheets":4,"sheets":["Podsumowanie gotówki","Wydatki","Podsumowanie miesięczne","Dane wykresu"],"not_rendered":{"charts":2,"external_links":1,"defined_names":7,"pivot_tables":2},"read":"whole","date_system":"1900"}

{"sheet":"Podsumowanie gotówki","index":0,"n_rows":22,"n_cols":7,"rows_kept":22,"merged":[[0,1,1,5],[2,1,2,2],[2,3,2,4],[3,1,18,1],[19,1,20,1],[21,1,22,1]]}
[null,"Śledzenie finansów osobistych"]
[{"$nulls":6},"Wydatki >"]
[{"$nulls":3},"Podsumowanie gotówki"]
[null,"Wykres kolumnowy pokazujący procent dostępnych środków pieniężnych znajduje się w tej komórce.",null,"Konto","Gotówka na początku","Wydatki razem","Pozostałe środki"]
[{"$nulls":3},"Rachunek bieżący",{"v":3000,"d":"3000.00"},{"$f":"SUMIF(Wydatki[Konto],\"=\" &Tabela_Podsumowanie_środków[[#This Row],[Konto]],Wydatki[Kwota])","v":{"v":496,"d":"496.00"}},{"$f":"Tabela_Podsumowanie_środków[[#This Row],[Gotówka na początku]]-Tabela_Podsumowanie_środków[[#This Row],[Wydatki razem]]","v":{"v":2504,"d":"2504.00"}}]
[{"$nulls":3},"Rachunek oszczędnościowy",{"v":500,"d":"500.00"},{"$f":"SUMIF(Wydatki[Konto],\"=\" &Tabela_Podsumowanie_środków[[#This Row],[Konto]],Wydatki[Kwota])","v":{"v":450,"d":"450.00"}},{"$f":"Tabela_Podsumowanie_środków[[#This Row],[Gotówka na początku]]-Tabela_Podsumowanie_środków[[#This Row],[Wydatki razem]]","v":{"v":50,"d":"50.00"}}]
[{"$nulls":3},"Inne",{"v":200,"d":"200.00"},{"$f":"SUMIF(Wydatki[Konto],\"=\" &Tabela_Podsumowanie_środków[[#This Row],[Konto]],Wydatki[Kwota])","v":{"v":30,"d":"30.00"}},{"$f":"Tabela_Podsumowanie_środków[[#This Row],[Gotówka na początku]]-Tabela_Podsumowanie_środków[[#This Row],[Wydatki razem]]","v":{"v":170,"d":"170.00"}}]
[{"$nulls":3},"Suma",{"$f":"SUBTOTAL(109,Tabela_Podsumowanie_środków[Gotówka na początku])","v":{"v":3700,"d":"3700.00"}},{"$f":"SUBTOTAL(109,Tabela_Podsumowanie_środków[Wydatki razem])","v":{"v":976,"d":"976.00"}},{"$f":"SUBTOTAL(109,Tabela_Podsumowanie_środków[Pozostałe środki])","v":{"v":2724,"d":"2724.00"}}]
{"$rows_empty":11}
[null,"Pozostałe\nPozostałe:"]
[]
[null,{"$f":"Tabela_Podsumowanie_środków[[#Totals],[Pozostałe środki]]/Tabela_Podsumowanie_środków[[#Totals],[Gotówka na początku]]","v":{"v":0.7362162162162162,"d":"74%"}}]

{"sheet":"Wydatki","index":1,"n_rows":16,"n_cols":6,"rows_kept":16,"merged":[[0,1,1,3],[2,1,2,2],[3,5,6,6],[7,5,14,6]]}
[null,"Śledzenie finansów osobistych"]
[{"$nulls":4},"< Podsumowanie gotówki","Podsumowanie miesięczne >"]
[null,"Wydatki"]
[null,"Data","Opis","Kwota","Konto","Ta komórka zawiera fragmentator do filtrowania danych tabeli według typu konta."]
[null,{"$f":"TODAY()+105","v":"2023-03-17"},"Wypłata z bankomatu",{"v":40,"d":"40.00"},"Rachunek bieżący"]
[null,{"$f":"TODAY()+106","v":"2023-03-18"},"Obiad",{"v":5,"d":"5.00"},"Rachunek bieżący"]
[null,{"$f":"TODAY()+107","v":"2023-03-19"},"Opłaty za samochód",{"v":230,"d":"230.00"},"Rachunek oszczędnościowy"]
[null,{"$f":"TODAY()+135","v":"2023-04-16"},"Opłata za prąd",{"v":70,"d":"70.00"},"Rachunek bieżący","Ta komórka zawiera fragmentator do filtrowania danych tabeli według opisu."]
[null,{"$f":"TODAY()+139","v":"2023-04-20"},"Kolacja",{"v":53,"d":"53.00"},"Rachunek bieżący"]
[null,{"$f":"TODAY()+162","v":"2023-05-13"},"Podjęcie gotówki",{"v":100,"d":"100.00"},"Rachunek oszczędnościowy"]
[null,{"$f":"TODAY()+167","v":"2023-05-18"},"Opłaty za samochód",{"v":230,"d":"230.00"},"Rachunek bieżący"]
[null,{"$f":"TODAY()+198","v":"2023-06-18"},"Opłata za prąd",{"v":70,"d":"70.00"},"Rachunek oszczędnościowy"]
[null,{"$f":"TODAY()+212","v":"2023-07-02"},"Wypłata z bankomatu",{"v":30,"d":"30.00"},"Rachunek bieżący"]
[null,{"$f":"TODAY()+225","v":"2023-07-15"},"Wypłata z bankomatu",{"v":50,"d":"50.00"},"Rachunek oszczędnościowy"]
[null,{"$f":"TODAY()+232","v":"2023-07-22"},"Wypłata z bankomatu",{"v":30,"d":"30.00"},"Inne"]
[null,{"$f":"TODAY()+283","v":"2023-09-11"},"Opłata za prąd",{"v":68,"d":"68.00"},"Rachunek bieżący"]

{"sheet":"Podsumowanie miesięczne","index":2,"n_rows":37,"n_cols":6,"rows_kept":37,"merged":[[0,1,1,4],[2,1,2,5],[3,1,3,6],[4,1,16,4],[4,5,8,6],[9,5,16,6],[17,1,17,5]]}
[null,"Podsumowanie miesięczne"]
[{"$nulls":5},"< Wydatki"]
[null,"Aby zaktualizować te dane, najpierw zaznacz wykres przestawny.  Następnie kliknij raz prawym przyciskiem myszy, aby wyświetlić menu skrótów.  Wybierz pozycję Odśwież lub Odśwież wszystko, aby zaktualizować wykres."]
[null,"Podsumowanie konta"]
[null,"W tej komórce znajduje się wykres kolumnowy podsumowania kont umożliwiający porównanie rachunku bieżącego, oszczędnościowego i innych dla każdego miesiąca.",{"$nulls":3},"W tej komórce znajduje się fragmentator do filtrowania wykresu według typu konta."]
[]
[]
[]
[]
[{"$nulls":5},"W tej komórce znajduje się fragmentator do filtrowania wykresu według opisu."]
{"$rows_empty":7}
[null,"Podsumowanie wydatków"]
[null,"Szczegóły "]
[null,null,"Rachunek bieżący","Rachunek oszczędnościowy","Inne","Suma końcowa"]
[null,"mar",{"v":45,"d":"45.00"},{"v":230,"d":"230.00"},null,{"v":275,"d":"275.00"}]
[null,"Obiad",{"v":5,"d":"5.00"},null,null,{"v":5,"d":"5.00"}]
[null,"Opłaty za samochód",null,{"v":230,"d":"230.00"},null,{"v":230,"d":"230.00"}]
[null,"Wypłata z bankomatu",{"v":40,"d":"40.00"},null,null,{"v":40,"d":"40.00"}]
[null,"kwi",{"v":123,"d":"123.00"},null,null,{"v":123,"d":"123.00"}]
[null,"Kolacja",{"v":53,"d":"53.00"},null,null,{"v":53,"d":"53.00"}]
[null,"Opłata za prąd",{"v":70,"d":"70.00"},null,null,{"v":70,"d":"70.00"}]
[null,"maj",{"v":230,"d":"230.00"},{"v":100,"d":"100.00"},null,{"v":330,"d":"330.00"}]
[null,"Opłaty za samochód",{"v":230,"d":"230.00"},null,null,{"v":230,"d":"230.00"}]
[null,"Podjęcie gotówki",null,{"v":100,"d":"100.00"},null,{"v":100,"d":"100.00"}]
[null,"cze",null,{"v":70,"d":"70.00"},null,{"v":70,"d":"70.00"}]
[null,"Opłata za prąd",null,{"v":70,"d":"70.00"},null,{"v":70,"d":"70.00"}]
[null,"lip",{"v":30,"d":"30.00"},{"v":50,"d":"50.00"},{"v":30,"d":"30.00"},{"v":110,"d":"110.00"}]
[null,"Wypłata z bankomatu",{"v":30,"d":"30.00"},{"v":50,"d":"50.00"},{"v":30,"d":"30.00"},{"v":110,"d":"110.00"}]
[null,"wrz",{"v":68,"d":"68.00"},null,null,{"v":68,"d":"68.00"}]
[null,"Opłata za prąd",{"v":68,"d":"68.00"},null,null,{"v":68,"d":"68.00"}]
[null,"Suma końcowa",{"v":496,"d":"496.00"},{"v":450,"d":"450.00"},{"v":30,"d":"30.00"},{"v":976,"d":"976.00"}]

{"sheet":"Dane wykresu","index":3,"n_rows":11,"n_cols":6,"rows_kept":11,"merged":[[0,1,0,2]]}
[null,"Dane wykresu przestawnego"]
[null,"Ta tabela przestawna jest źródłem danych dla wykresu przestawnego podsumowania kont w arkuszu Podsumowanie miesięczne"]
[null,"Suma z Kwota","Etykiety kolumn"]
[null,"Etykiety wierszy","Rachunek bieżący","Rachunek oszczędnościowy","Inne","Suma końcowa"]
[null,"mar",{"v":45,"d":"45.00"},{"v":230,"d":"230.00"},null,{"v":275,"d":"275.00"}]
[null,"kwi",{"v":123,"d":"123.00"},null,null,{"v":123,"d":"123.00"}]
[null,"maj",{"v":230,"d":"230.00"},{"v":100,"d":"100.00"},null,{"v":330,"d":"330.00"}]
[null,"cze",null,{"v":70,"d":"70.00"},null,{"v":70,"d":"70.00"}]
[null,"lip",{"v":30,"d":"30.00"},{"v":50,"d":"50.00"},{"v":30,"d":"30.00"},{"v":110,"d":"110.00"}]
[null,"wrz",{"v":68,"d":"68.00"},null,null,{"v":68,"d":"68.00"}]
[null,"Suma końcowa",{"v":496,"d":"496.00"},{"v":450,"d":"450.00"},{"v":30,"d":"30.00"},{"v":976,"d":"976.00"}]